Cogmind - Beta 16 @@@ ROGUE MODE // 2025.12.29 @ 18:52:42 Player: Compilatron Result: Destroyed by D-53 Grenadier with Mini Grenade Launcher Performance ------------- Evolutions (0) 0 Regions Visited (4) 800 Robots Destroyed (16) 80 Value Destroyed (264) 264 Prototype IDs (23) 460 Alien Tech Used (0) 0 Bonus (300) 300 TOTAL SCORE: 1904 Bonus ------- Aligned with FarCom 300 Cogmind --------- Core Integrity 0/250 Matter 290/300 Energy 98/100 System Corruption 0% Temperature Cool (0) Movement Core (1450) Ox28 Location -9/Mines Parts ------- > --- POWER (1) -------- (None) > --- PROPULSION (2) --- (None) > --- UTILITY (2) ------ Huge Storage Unit > --- WEAPON (2) ------- Heavy Assault Rifle Axe > --- INVENTORY (25) --- Ion Engine Deuterium Engine Armored Wheel Armored Wheel Medium Storage Unit High-capacity Matter Pod (200) Sensor Array Advanced Targeting Computer Advanced Targeting Computer Improved Weapon Shielding Improved Trap Extractor (0/6) PSU Rigger Assault Rifle Datajack Plasma Cutter Peak State ------------ > --- POWER ------------ Ion Engine > --- PROPULSION ------- Armored Wheel Armored Wheel > --- UTILITY ---------- Huge Storage Unit Seismic Detector > --- WEAPON ----------- Beam Rifle Axe > --- INVENTORY -------- Ion Engine Deuterium Engine Light Treads Armored Wheel Armored Wheel Medium Storage Unit High-capacity Matter Pod Sensor Array Advanced Targeting Computer Advanced Targeting Computer Improved Weapon Shielding Improved Trap Extractor PSU Rigger Assault Rifle Heavy Assault Rifle Datajack Plasma Cutter [Rating: 15] Favorites ----------- Power Ion Engine Engine Ion Engine Propulsion Armored Wheel Treads Light Treads Leg Aluminum Leg Wheel Armored Wheel Utility Seismic Detector Device Seismic Detector Storage Huge Storage Unit Weapon Assault Rifle Energy Gun Beam Rifle Ballistic Gun Assault Rifle Slashing Weapon Axe Build | -11 -10 -10 -10 -9 ------- Run | Yrd Mat Min Exi Min Slots Evolved . | . . . . . Power . | . . . . . Propulsion . | . . . . . Utility . | . . . . . Weapon . | . . . . . Parts Attached 16 | 2 9 4 . 1 Power 1 | . 1 . . . Engine 1 | . 1 . . . Core . | . . . . . Reactor . | . . . . . Propulsion 6 | 2 2 2 . . Treads 2 | 2 . . . . Leg . | . . . . . Wheel 4 | . 2 2 . . Hover . | . . . . . Flight . | . . . . . Utility 4 | . 4 . . . Device 1 | . 1 . . . Storage 3 | . 3 . . . Processor . | . . . . . Hackware . | . . . . . Protection . | . . . . . Artifact . | . . . . . Weapon 5 | . 2 2 . 1 Energy Gun 1 | . . 1 . . Energy Cannon . | . . . . . Ballistic Gun 3 | . 2 1 . . Ballistic Cannon . | . . . . . Launcher . | . . . . . Special Weapon . | . . . . . Impact Weapon . | . . . . . Slashing Weapon 1 | . . . . 1 Piercing Weapon . | . . . . . Special Melee Weapon . | . . . . . Unidentified Prototypes . | . . . . . Parts Lost 7 | . . 1 . 6 Power 1 | . . . . 1 Propulsion 4 | . . 1 . 3 Utility 1 | . . . . 1 Weapon 1 | . . . . 1 Highest Loss Streak 6 | . . 1 . 6 To Critical Strikes . | . . . . . Average Backups 12 | 6 7 12 16 16 Power 1 | 1 1 1 2 2 Propulsion 3 | 4 4 3 3 2 Utility 3 | . . 3 6 8 Weapon 1 | 1 1 1 3 2 Tool/Special . | . . . . . Unused Backups 18 | . 6 . . 12 Power 3 | . 1 . . 2 Propulsion 4 | . 4 . . . Utility 7 | . . . . 7 Weapon 1 | . . . . 1 Tool/Special 3 | . 1 . . 2 Average Slot Usage (%) 89 | . 96 90 85 67 Engine 13 | . 14 14 14 3 Treads 10 | . 25 7 . 3 Wheel 16 | . 2 19 28 21 Device 12 | . 12 12 14 4 Storage 14 | . 14 14 14 14 Energy Gun 8 | . . 12 14 7 Ballistic Gun 12 | . 26 10 . 1 Slashing Weapon 1 | . . . . 11 Peak Build Rating 15 | 6 10 12 13 15 Average Rating 10 | 6 7 10 12 11 On Entrance 9 | 6 6 9 12 13 Avg Prop Armor Cover (%) 11 | . 11 11 . . Naked Turns . | . . . . . Heaviest Build 91 | 12 88 91 89 89 Greatest Support 40 | 40 40 24 24 24 Greatest Overweight (x) 29 | . 2 29 3 3 Average Overweight (x) 1 | . . 1 3 3 Largest Inventory Capacity 25 | 8 25 25 25 25 Average Capacity 16 | 8 8 17 25 25 Most Carried 18 | 6 10 17 18 18 Average Carried 12 | 6 7 12 16 16 Final Capacity 25 | 8 10 25 25 25 Final Carried 18 | 6 10 16 18 15 Class Distribution -------------------- 100% | Mutant Dominant Class ---------------- Mutant | -10/Materials Mutant | -10/Mines Mutant | -10/Exiles Mutant | -9/Mines Resources | -11 -10 -10 -10 -9 ----------- Run | Yrd Mat Min Exi Min Matter Collected 676 | 200 260 183 6 27 Remotely . | . . . . . Salvage Created 733 | . 292 306 . 135 Parts 29 | . 18 10 . 1 Haulers Intercepted 1 | . 1 . . . Recyclers Shooed . | . . . . . Parts Field Recycled . | . . . . . Retrieved Matter . | . . . . . Parts Self-Destructed . | . . . . . Prevented . | . . . . . Parts Restored . | . . . . . Kills | -11 -10 -10 -10 -9 ------- Run | Yrd Mat Min Exi Min Combat Hostiles Destroyed 19 | . 6 5 . 8 Melee 8 | . . . . 8 Guns 11 | . 6 5 . . Classes Destroyed 6 | . 4 . . 2 Worker 1 | . . . . 1 Hauler 1 | . 1 . . . Recycler 3 | . 1 2 . . Swarmer 6 | . 3 3 . . Grunt 5 | . 3 2 . . Assembled 8 | . . . . 8 Best Kill Streak 9 | . 3 2 . 9 Combat Bots Only 8 | . 3 2 . 8 Max Kills in Single Turn 1 | . 1 1 . 1 Gunslinging . | . . . . . Exploded . | . . . . . Melee 1 | . . . . 1 Uniques/NPCs Destroyed . | . . . . . Combat | -11 -10 -10 -10 -9 -------- Run | Yrd Mat Min Exi Min Hostile Shots Fired 124 | . 37 43 . 44 Missed 38 | . 11 15 . 12 Hits 86 | . 26 28 . 32 Melee 4 | . . . . 4 Projectile 82 | . 26 28 . 28 AOE 3 | . . . . 3 Critical Strikes 1 | . . 1 . . Damage Taken 1129 | . 234 320 . 575 Core 251 | . 28 73 . 150 Absorbed by Shields . | . . . . . Core Remaining (%) 100 | 100 . . . . Volleys Fired 52 | . 27 23 . 2 Largest 2 | . 2 2 . 1 Hottest 79 | . 40 79 . 23 Shots Fired 102 | . 54 46 . 2 Gun 102 | . 54 46 . 2 Cannon . | . . . . . Launcher . | . . . . . Special . | . . . . . Kinetic 80 | . 54 24 . 2 Thermal 22 | . . 22 . . Explosive . | . . . . . Electromagnetic . | . . . . . Robot Hit Streak 10 | . 10 6 . 4 Robot Miss Streak 7 | . 3 7 . . Penetration Max . | . . . . . Secondary Targets 3 | . 1 2 . . Max Gunslinging Chain 1 | . 1 1 . . Shots Hit Robots 83 | . 37 22 . 24 Core Hits 29 | . 10 9 . 10 Critical Kills . | . . . . . Critical Parts Destroyed . | . . . . . Critical Strikes . | . . . . . Melee Attacks 31 | . . . . 31 Impact . | . . . . . Slashing 31 | . . . . 31 Piercing . | . . . . . Sneak Attacks . | . . . . . Combat Hostiles . | . . . . . Follow-up Attacks . | . . . . . Damage Inflicted 1789 | . 492 326 . 971 Guns 847 | . 492 326 . 29 Cannons . | . . . . . Explosions . | . . . . . Melee 932 | . . . . 932 Ramming 10 | . . . . 10 Kinetic 686 | . 492 165 . 29 Thermal 161 | . . 161 . . Explosive . | . . . . . Electromagnetic . | . . . . . Impact . | . . . . . Slashing 932 | . . . . 932 Piercing . | . . . . . Highest Corruption . | . . . . . Average Corruption . | . . . . . Corruption Purged . | . . . . . Corruption Blocked . | . . . . . Overload Shots . | . . . . . Overflow Damage 17 | . . . . 17 Projectiles . | . . . . . Explosions . | . . . . . Melee 17 | . . . . 17 Knockbacks . | . . . . . Impact . | . . . . . Kinetic . | . . . . . Secondary . | . . . . . Self-Inflicted Damage 5 | . . . . 5 Shots . | . . . . . Rammed 1 | . . . . 1 Targets Rammed 1 | . . . . 1 Kicked . | . . . . . Crushed . | . . . . . Highest Temperature 271 | . . 271 . . Average Temperature 115 | . . 115 . . Received Heat Transfer 200 | . 60 120 . 20 Effects 1 | . . 1 . . Interference 1 | . . 1 . . Siege Activations . | . . . . . Martial Activations . | . . . . . Shielding Activations . | . . . . . Robots Disrupted . | . . . . . Combat Hostiles . | . . . . . Robots Corrupted . | . . . . . Combat Hostiles . | . . . . . Parts Fried . | . . . . . Impact Corruptions . | . . . . . Robots Melted . | . . . . . Combat Hostiles . | . . . . . Parts Melted . | . . . . . Heat Transferred 407 | . . 407 . . Parts Sabotaged . | . . . . . Parts Stolen . | . . . . . Parts Stripped . | . . . . . Power Chain Reactions . | . . . . . Alert | -11 -10 -10 -10 -9 ------- Run | Yrd Mat Min Exi Min Maximum Alert Level . | . . . . . Low Security (%) 100 | 100 100 100 . 100 Level 1 . | . . . . . Level 2 . | . . . . . Level 3 . | . . . . . Level 4 . | . . . . . Level 5 . | . . . . . High Security . | . . . . . Max Security . | . . . . . Peak Influence 70 | . 70 60 . 5 Initial 7 | . . 7 . . Average 15 | . 19 15 . . Influence Increases 302 | . 167 130 . 5 Destroy 0b10 Robot/C 220 | . 120 100 . . Destroy 0b10 Robot/NC 25 | . 10 10 . 5 Destroy Leader 42 | . 22 20 . . Lose Combat Pursuer 15 | . 15 . . . Influence Decreases 302 | . 146 151 . 5 Entered New Map 14 | . . 14 . . Time Decay 273 | . 146 127 . . Lost Part 15 | . . 10 . 5 Squads Dispatched 1 | . 1 . . . Investigation . | . . . . . Extermination . | . . . . . Reinforcement 1 | . 1 . . . Assault . | . . . . . Garrison . | . . . . . Intercept . | . . . . . Searches Triggered . | . . . . . Construction Impeded . | . . . . . Haulers Reinforced . | . . . . . Active Scanning Responses . | . . . . . Cargo Convoy Interrupts . | . . . . . Stealth | -11 -10 -10 -10 -9 --------- Run | Yrd Mat Min Exi Min Distress Signals . | . . . . . Communications Jammed . | . . . . . Distress Signals . | . . . . . Times Spotted 48 | . 10 7 . 31 Peak Tracking Total 20 | . 3 3 . 20 Tactical Retreats 5 | . 1 . . 4 Traps | -11 -10 -10 -10 -9 ------- Run | Yrd Mat Min Exi Min Traps Triggered 3 | . 1 2 . . Indirectly . | . . . . . Trap Hack Attempts . | . . . . . Triggered . | . . . . . Disarmed . | . . . . . Reprogrammed . | . . . . . Reused . | . . . . . Traps Extracted . | . . . . . Installed . | . . . . . Triggered . | . . . . . Machines | -11 -10 -10 -10 -9 ---------- Run | Yrd Mat Min Exi Min Machines Disabled 2 | . . 2 . . Max in Single Turn 1 | . . 1 . . Machines Repaired . | . . . . . Machines Dismantled . | . . . . . Machines Sabotaged . | . . . . . Overloaded Fab Kills . | . . . . . Hacking | -11 -10 -10 -10 -9 --------- Run | Yrd Mat Min Exi Min Machines Accessed 5 | . 3 1 1 . Terminals 3 | . 3 . . . Fabricators . | . . . . . Repair Stations . | . . . . . Recycling Units . | . . . . . Scanalyzers . | . . . . . Garrison Access . | . . . . . Total Hacks 8 | . 6 1 1 . Successful 5 | . 3 1 1 . Failed 3 | . 3 . . . Catastrophic 1 | . 1 . . . Database Lockouts . | . . . . . Manual 4 | . 3 . 1 . Terminals 6 | . 6 . . . Fabricators . | . . . . . Repair Stations . | . . . . . Recycling Units . | . . . . . Scanalyzers . | . . . . . Garrison Access . | . . . . . Terminal Hacks 3 | . 1 1 1 . Open Door 1 | . . 1 . . Locate Traps 1 | . 1 . . . Proto ID Catalog 1 | . . . 1 . Fabricator Hacks . | . . . . . Repair Station Hacks . | . . . . . Recycling Unit Hacks . | . . . . . Scanalyzer . | . . . . . Garrison Access Hacks . | . . . . . Unauthorized Hacks 2 | . 2 . . . Terminals 2 | . 2 . . . Botnet 1 | . 1 . . . Operators 1 | . 1 . . . Fabricators . | . . . . . Repair Stations . | . . . . . Recycling Units . | . . . . . Scanalyzers . | . . . . . Garrison Access . | . . . . . Data Cores Recovered . | . . . . . Used . | . . . . . Hacking Detections 3 | . 3 . . . Full Trace Events . | . . . . . Feedback Events . | . . . . . Feedback Blocked . | . . . . . Robot Schematics Acquired . | . . . . . Robots Built . | . . . . . Authchips . | . . . . . Time . | . . . . . Total Robot Build Rating . | . . . . . Part Schematics Acquired . | . . . . . Parts Built . | . . . . . Authchips . | . . . . . Time . | . . . . . Total Part Build Rating . | . . . . . Part Studies Acquired . | . . . . . Parts Repaired . | . . . . . Time . | . . . . . Parts Recycled . | . . . . . Recycled Matter . | . . . . . Retrieved Matter . | . . . . . Retrieved Components . | . . . . . Parts Scanalyzed . | . . . . . Part Schematics Acquired . | . . . . . Parts Damaged . | . . . . . Bothacking | -11 -10 -10 -10 -9 ------------ Run | Yrd Mat Min Exi Min Used RIF Installer . | . . . . . Robots Hacked . | . . . . . Non-combat . | . . . . . Combat . | . . . . . Robot Hacks Applied . | . . . . . Relay Couplers Released . | . . . . . Fabnet Peak Effective % . | . . . . . Robots Rewired . | . . . . . Allies Hacked . | . . . . . Hacks Repelled . | . . . . . Allies | -11 -10 -10 -10 -9 -------- Run | Yrd Mat Min Exi Min Total Allies . | . . . . . Largest Group . | . . . . . Highest-Rated Group . | . . . . . Highest-Rated Ally . | . . . . . Total Orders . | . . . . . Ally Attacks . | . . . . . Total Damage . | . . . . . Kills . | . . . . . Allies Corrupted . | . . . . . Allies Melted . | . . . . . Intel | -11 -10 -10 -10 -9 ------- Run | Yrd Mat Min Exi Min Active Infowar (turns) 1160 | . 398 424 309 29 Seismic 1160 | . 398 424 309 29 Robot Analysis Total . | . . . . . Derelict Logs Recovered . | . . . . . Drone Launches . | . . . . . Drone Recoveries . | . . . . . Exploration | -11 -10 -10 -10 -9 ------------- Run | Yrd Mat Min Exi Min Turns Passed 1320 | 6 421 481 309 103 Spaces Moved 723 | 3 201 285 228 6 Core 1 | . . 1 . . Treads 154 | 1 153 . . . Legs 2 | 2 . . . . Wheels 566 | . 48 284 228 6 Hover . | . . . . . Flight . | . . . . . Fastest Speed 90 | 120 90 105 135 135 Average Speed 133 | 133 147 121 135 135 Slowest Speed 1500 | 160 320 1500 135 135 Overloaded Moves . | . . . . . Propulsion Burnouts . | . . . . . Robots Hopped . | . . . . . Potential Cave-ins . | . . . . . Cave-ins Triggered . | . . . . . Exploration Rate (%) 36 | 2 46 67 61 6 Regions Visited 4 Branch Regions 3 Pre-discovered Areas . | . . . . . Known Exits Taken . | . . . . . Unknown Exits Taken 4 | 1 1 1 1 . Scrap Searched . | . . . . . Spaces Dug . | . . . . . Terrain Destroyed . | . . . . . Melee . | . . . . . Projectile . | . . . . . AOE . | . . . . . Terrain Rammed . | . . . . . Walls Destroyed . | . . . . . Machines Disabled . | . . . . . Actions | -11 -10 -10 -10 -9 --------- Run | Yrd Mat Min Exi Min Total 924 | 4 274 372 229 45 Wait 60 | . 15 43 . 2 Move 719 | 2 200 284 227 6 Hop . | . . . . . Pick Up 26 | . 13 11 2 . Fast Attach 3 | . 2 1 . . Attach 11 | . 3 5 . 3 Detach . | . . . . . Swap 11 | 2 6 3 . . Drop 10 | . 8 2 . . Fire 52 | . 27 23 . 2 Melee 31 | . . . . 31 Ram 1 | . . . . 1 Kick . | . . . . . Crush . | . . . . . Escape Stasis . | . . . . . Rewire . | . . . . . Trap . | . . . . . Miscellaneous . | . . . . . Route ------- -11/Scrapyard -10/Materials (discovered 2 exits: *Min x2) -10/Mines (discovered 2 exits: [*Mat] / *Exi) -10/Exiles -9/Mines History --------- Turn | Location | Event 1 | -11/Scrapyard | Discovered new exit (range 3) 7 | -11/Scrapyard | Entered Materials 302 | -10/Materials | Discovered new exit (range 9) 308 | -10/Materials | Build established: Mutant 404 | -10/Materials | Discovered new exit (range 7) 428 | -10/Materials | Entered Mines 479 | -10/Mines | Joined a pair of Derelicts in attacking an 0b10 outpost 678 | -10/Mines | Met a Derelict who couldn't figure out how to use a Trap Extractor 843 | -10/Mines | Discovered new exit (range 7) 887 | -10/Mines | Deemed a non-threat by the Exiles lab entrance 888 | -10/Mines | Discovered new exit (range 5) 909 | -10/Mines | Entered Exiles 943 | -10/Exiles | Met 8R-AWN 965 | -10/Exiles | Met EX-HEX 1004 | -10/Exiles | Met EX-BIN 1023 | -10/Exiles | Aligned with FarCom system 1024 | -10/Exiles | Given EX-Vault access code 1057 | -10/Exiles | Opened EX-Vault 1065 | -10/Exiles | Found PSU Rigger 1091 | -10/Exiles | Warned to stay clear of 0b10 Research branches 1113 | -10/Exiles | Exiles lab attacked by MAIN.C 1204 | -10/Exiles | Discovered new exit (range 10) 1218 | -10/Exiles | Left Exiles lab with PSU Rigger 1218 | -10/Exiles | Entered Mines 1219 | -9/Mines | Assembled infested the area 1224 | -9/Mines | Assisted by a Guerilla fighting off Assembled 1250 | -9/Mines | Core integrity fell below 50% 1316 | -9/Mines | Core integrity fell below 20% 1321 | -9/Mines | Destroyed by D-53 Grenadier with Mini Grenade Launcher Last Messages --------------- 01247_ Seismic Detector destroyed. 01259_ as-09955 destroyed. 01260_ Beam Rifle destroyed. 01262_ Destroyed Asb. Hover Unit. 01265_ as-20049 destroyed. 01273_ Destroyed Asb. Hover Unit. 01276_ as-44221 destroyed. 01281_ as-86998 destroyed. 01288_ Destroyed Asb. Hover Unit. 01289_ Arm. Wheel destroyed. 01297_ Acquired 10 matter. 01300_ as-56390 destroyed. 01306_ as-97697 destroyed. 01309_ Arm. Wheel destroyed. 01316_ K-01 Serf destroyed. 01316_ as-62752 destroyed. 01318_ Acquired 1 matter. 01321_ The unstable cave ceiling collapses. 01321_ Lgt. Treads destroyed. [Achievement: Deductive Reasoning] Map ----- +----------------------------------------------------+ | ??????????????????????????????????????? | | ??????????????????????????????????????? | | ??????????????????????????????????????? | | ??????????????????????????????????????? | | ??????????????????????????????????????? | | ??????????????????????????????????????? | | ??????????????????????????????????????? | | ??????????????????????????????????????? | | ??????????????????????????????????????? | | ??????????????# ??????????????????????? | | ?????????????? ?????????????????????? | | ?????????????? ????????????????????? | | ???????????### ##???????????????????? | | ???????????# ##??????????????????? | | ???????????# #??????????????????? | | ??????????? ####???????????????? | | ?????????### ####????????????? | | ?????????# < #????????????? | | ????????## # #????????????? | | ????????? ###??????????? | | ??????#### =% d ??????????? | | ??????# d ????????????? | | ??????# #??????????????? | | ??????# ?????????????????? | | ??????# #???????????????????? | | ??????# @ #???????????????????? | | ??????##### #???????????????????? | | ??????????# #???????????????????? | | ??????????## #####???????????????????? | | ???????????###????????????????????????? | | ??????????????????????????????????????? | | | | | | | | | | | | | | | | | | | | | | | | | | | | | | | | | | | | | | | +----------------------------------------------------+ Best States ------------- Heat Dissipation 25 Energy Generation 10 Energy Capacity 250 Matter Stores 300 Matter Capacity 300 Sight Range 16 Terrain Scan Density 10 Evasion (%) 40 Recoil Reduction 2 Item Schematics ----------------- None Robot Schematics ------------------ None Fabricated ------------ Nothing Repaired ---------- Nothing Studied --------- None Alien Tech Used ----------------- None Achievements -------------- Deductive Reasoning Challenges ------------ None Game ------ Seed LightningBraceSegregator Manual? 0 Play Time 00:11:17 Cumulative 80.3 hours Start 2025.12.29 @ 18:42:37 End 2025.12.29 @ 18:52:42 Sessions 1 Manual Loads 0 Difficulty Rogue Special Mode None Game No. 129 Rogue 105 Adventurer 20 Explorer 4 Win Type - Total 1 Types 0/0/0/1/0/0/0/0/0/0 Lore% 46 Gallery% 42 Achievement% 33 Wizard Run 0 Options --------- Layout 1 ASCII 0 Keyboard 0 Movement Numpad Keybinds 0 Fullscreen 2 Font 24/Smallcaps Map View 50x35 Zoom Use 0% Tactical HUD 1 Map Filters NONE Filters NONE Steam 1 RUN: 8dc9cd30-4ffb-40fa-9421-348a66aa6c93